bitfinex-derivatives/quotes_SOLF0:USTF0_20241231
["timestamp","ask_amount","ask_price","bid_price","bid_amount"]
[1735684032003,1.6334,191.83,191.8,2.6115]
[1735684033209,10.71789799,191.92,191.8,2.6115]
[1735684033512,6.67278899,191.88,191.8,6.67278899]
[1735684033709,6.67278899,191.88,191.82,6.67278899]
[1735684033910,4.6939,191.91,191.85,2.6109]
[1735684034213,4.6939,191.91,191.86,3.2]
[1735684034510,9.28288899,191.92,191.86,5.8107]
[1735684034511,2.6101,191.92,191.86,5.8107]
[1735684034711,6.67278899,191.92,191.86,9.87278899]
[1735684034907,1.6036,191.93,191.86,9.87278899]
[1735684035906,1.6036,191.93,191.86,12.48348899]
[1735684036710,1.6036,191.93,191.87,2.6107]
[1735684037715,1.6036,191.93,191.88,6.67278899]
[1735684038617,1.30549573,191.92,191.88,6.67278899]
[1735684038811,1.30549573,191.91,191.88,9.28338899]
[1735684039110,1.30549573,191.9,191.88,9.28338899]
[1735684039415,1.30549573,191.89,191.88,9.28338899]
[1735684039915,1.30534057,191.89,191.88,9.28338899]
[1735684040117,1.30534057,191.89,191.88,2.6106]
[1735684040413,1.30534057,191.89,191.88,9.28338899]
[1735684042613,1.30534057,191.89,191.88,3.12]
[1735684042808,8.27638899,191.93,191.88,3.12]
[1735684043014,1.30537241,191.92,191.88,3.12]
[1735684043220,1.30537241,191.91,191.88,3.12]
[1735684043414,1.30537241,191.9,191.88,3.12]
[1735684043615,1.30537241,191.89,191.88,3.12]
[1735684044217,1.30537241,191.91,191.88,3.12]
[1735684044413,1.30537241,191.9,191.88,3.12]
[1735684044613,1.30537241,191.89,191.85,6.67278899]
[1735684044815,1.30537241,191.88,191.86,3.12]
[1735684045018,1.30537241,191.87,191.86,3.12]
[1735684045216,1.30537241,191.91,191.86,3.12]
[1735684045916,2.6101,191.92,191.86,3.12]
[1735684046222,1.30553438,191.91,191.86,3.12]
[1735684046423,1.30553438,191.9,191.86,3.12]
[1735684046620,1.30553438,191.89,191.87,6.67278899]
[1735684046922,1.30553438,191.88,191.87,6.67278899]
[1735684047813,4.2135,191.93,191.87,6.67278899]
[1735684048016,1.30539873,191.92,191.87,6.67278899]
[1735684048212,1.30539873,191.91,191.87,6.67278899]
[1735684048422,1.30539873,191.9,191.87,6.67278899]
[1735684048618,1.30539873,191.89,191.87,6.67278899]
[1735684048822,1.6036,191.93,191.87,6.67278899]
[1735684049023,1.30535607,191.92,191.87,6.67278899]
[1735684049223,1.30535607,191.91,191.87,6.67278899]
[1735684049423,1.30535607,191.9,191.87,6.67278899]
[1735684049619,1.30535607,191.89,191.87,6.67278899]
[1735684049819,1.6036,191.93,191.87,6.67278899]
[1735684050016,1.30535421,191.92,191.87,9.28338899]
[1735684050222,1.30535421,191.91,191.87,9.28338899]
[1735684050421,1.30535421,191.9,191.87,9.28338899]
[1735684050621,1.30535421,191.89,191.87,9.28338899]
[1735684050821,1.6036,191.93,191.87,9.28338899]
[1735684051122,1.30535196,191.92,191.87,9.28338899]
[1735684051321,1.30535196,191.91,191.87,9.28338899]
[1735684051626,1.30535196,191.9,191.87,9.28338899]
[1735684051923,1.30535196,191.89,191.87,9.28338899]
[1735684052124,1.6036,191.93,191.87,9.28338899]
[1735684052125,1.30535196,191.92,191.87,9.28338899]
[1735684052315,1.30537214,191.91,191.87,9.28338899]
[1735684052518,1.30537214,191.9,191.88,2.6106]
[1735684052724,1.30537214,191.89,191.88,2.6106]
[1735684054117,1.6036,191.93,191.88,2.6106]
[1735684054425,1.30524415,191.92,191.88,2.6106]
[1735684054628,1.30524415,191.91,191.88,2.6106]
[1735684054925,1.30524415,191.9,191.88,2.6106]
[1735684055126,1.30524415,191.92,191.88,2.6106]
[1735684055321,1.6036,191.93,191.88,2.6106]
[1735684055322,1.30528274,191.91,191.88,2.6106]
[1735684055515,1.30528274,191.9,191.88,2.6106]
[1735684055719,1.30528274,191.89,191.88,2.6106]
[1735684056524,1.30528274,191.92,191.88,2.6106]
[1735684056825,1.30528274,191.91,191.88,2.6106]
[1735684057024,1.30528274,191.9,191.88,2.6106]
[1735684057217,1.30528274,191.89,191.88,2.6106]
[1735684057926,9.28228899,191.96,191.89,2.6104]
[1735684058226,1.30528127,191.95,191.9,6.67278899]
[1735684058427,1.30528127,191.94,191.91,3.12]
[1735684058625,1.30528127,191.93,191.91,3.12]
[1735684058829,1.30528127,191.92,191.91,3.12]
[1735684067535,1.30528127,191.92,191.82,7.18913732]
[1735684067735,1.30528127,191.91,191.83,3.12]
[1735684067939,1.3053445,191.9,191.85,6.67278899]
[1735684068335,1.3053445,191.89,191.85,6.67278899]
[1735684068535,1.3053445,191.89,191.86,3.12]
[1735684068735,1.3053445,191.88,191.86,3.12]
[1735684069030,1.3053445,191.87,191.86,3.12]
[1735684069237,1.3053445,191.87,191.86,9.79278899]
[1735684070034,1.30545686,191.87,191.86,9.79278899]
[1735684074239,1.30544962,191.87,191.86,9.79278899]
[1735684077133,1.30545605,191.87,191.8,8.82493732]
[1735684077334,1.30545605,191.86,191.82,2.6114]
[1735684077530,6.67278899,191.93,191.83,3.06]
[1735684077731,1.30548201,191.92,191.84,6.67278899]
[1735684077938,1.30548201,191.91,191.84,6.67278899]
[1735684078236,1.30548201,191.9,191.84,6.67278899]
[1735684078438,1.30548201,191.89,191.84,6.67278899]
[1735684078640,1.30548201,191.88,191.84,6.67278899]
[1735684078836,1.30548201,191.87,191.84,6.67278899]
[1735684079037,1.30548201,191.86,191.84,6.67278899]
[1735684079236,1.30548201,191.85,191.84,6.67278899]
[1735684079444,1.3054822,191.85,191.84,6.67278899]
[1735684079637,1.3054822,191.85,191.78,28.75654928]
[1735684079841,1.3054822,191.84,191.79,5.6717]
[1735684080039,2.6108,191.87,191.79,5.6717]
[1735684080040,1.3054822,191.83,191.79,5.6717]
[1735684080237,2.6108,191.87,191.81,6.67278899]
[1735684080443,1.30569227,191.86,191.81,6.67278899]
[1735684080745,1.30569227,191.85,191.83,6.67278899]
[1735684080934,1.30569227,191.84,191.83,6.67278899]
[1735684081735,2.6106,191.88,191.83,6.67278899]
[1735684081940,22.8687464,191.91,191.83,6.67278899]
[1735684082140,2.6105,191.89,191.83,6.67278899]
[1735684084846,2.6105,191.89,191.83,9.28398899]
[1735684085648,2.611,191.86,191.84,3.06]
[1735684086749,2.6107,191.87,191.82,6.67278899]
[1735684086950,2.6107,191.87,191.84,6.67278899]
[1735684089551,10.70824491,191.91,191.84,6.67278899]
[1735684089747,2.6106,191.88,191.84,9.28388899]
[1735684090450,6.67278899,191.91,191.84,9.28388899]
[1735684090755,2.6104,191.9,191.85,2.611]
[1735684092251,3.91725624,191.92,191.83,3.06]
[1735684092454,20.5585339,191.95,191.88,6.67278899]
[1735684092656,13.88574491,191.95,191.9,6.67278899]
[1735684092855,3.1775,191.95,191.91,2.6102]
[1735684093457,3.1775,191.95,191.9,6.67278899]
[1735684093958,6.67278899,191.97,191.9,6.67278899]
[1735684094355,12.14303609,191.99,191.92,6.67278899]
[1735684094660,10.70824491,191.98,191.92,6.67278899]
[1735684095559,6.67278899,191.99,191.92,9.28268899]
[1735684095759,10.70824491,191.98,191.92,9.28268899]
[1735684096060,3.1864,192.0,191.92,2.6099]
[1735684096262,6.67278899,191.98,191.92,2.6099]
[1735684096456,2.6093,191.97,191.92,2.6099]
[1735684096652,2.6093,191.97,191.92,9.28268899]
[1735684097258,10.70824491,191.99,191.94,2.6097]
[1735684097561,10.70824491,191.99,191.95,3.06]
[1735684097758,3.1864,192.0,191.95,3.06]
[1735684098061,9.85918899,192.0,191.95,3.06]
[1735684098461,2.6091,191.99,191.95,3.06]
[1735684099366,3.1864,192.0,191.95,5.6696]
[1735684100658,12.12310121,192.05,191.95,5.6696]
[1735684100967,6.67278899,192.04,191.96,6.67278899]
[1735684101369,17.3810339,192.04,191.98,6.67278899]
[1735684101866,8.27628899,192.05,191.98,6.67278899]
[1735684102568,2.6084,192.04,191.98,9.28198899]
[1735684104263,2.6086,192.03,191.97,2.6092]
[1735684109763,9.28138899,192.03,191.97,2.6092]
[1735684110877,9.28138899,192.03,191.96,6.67278899]
[1735684111072,9.28138899,192.03,191.96,9.28218899]
[1735684113773,6.67278899,192.03,191.96,6.67278899]
[1735684113976,6.67278899,192.03,191.97,2.6093]
[1735684118883,2.6084,192.04,191.98,6.67278899]
[1735684119184,4.141,192.06,192.0,6.67278899]
[1735684119380,4.141,192.06,192.01,3.02]
[1735684119985,2.6082,192.06,192.01,3.02]
[1735684122586,2.6082,192.06,192.01,5.6288]
[1735684122982,6.67278899,192.08,192.01,5.6288]
[1735684123186,2.608,192.07,192.01,5.6288]
[1735684124685,2.608,192.07,192.01,3.02]
[1735684124989,2.608,192.07,192.02,2.6087]
[1735684127489,6.67278899,192.08,192.01,3.02]
[1735684128191,2.6081,192.06,192.01,5.6287]
[1735684128391,12.15301124,192.13,192.01,3.02]
[1735684128689,6.67278899,192.08,192.01,3.02]
[1735684128887,9.28078899,192.08,192.02,2.6086]
[1735684129592,6.67278899,192.08,192.02,2.6086]
[1735684129787,2.608,192.07,192.01,5.6288]
[1735684130492,2.608,192.07,192.01,3.02]
[1735684132387,2.608,192.07,192.01,5.6288]
[1735684135290,6.67278899,192.09,192.01,5.6288]
[1735684135496,3.91409072,192.1,192.03,2.6085]
[1735684135690,17.32450023,192.11,192.04,6.67278899]
[1735684136394,6.67278899,192.11,192.04,6.67278899]
[1735684137399,6.67278899,192.11,192.06,2.6081]
[1735684137591,6.67278899,192.11,192.07,3.02]
[1735684139397,10.68345193,192.14,192.07,3.02]
[1735684139596,10.84548899,192.15,192.08,6.67278899]
[1735684140001,6.67278899,192.15,192.08,6.67278899]
[1735684140198,6.67278899,192.15,192.1,2.6076]
[1735684142504,1.04074517,192.17,192.1,2.6074]
[1735684142705,6.67278899,192.16,192.1,2.6074]
[1735684143607,9.27968899,192.16,192.1,2.6074]
[1735684144604,9.27968899,192.16,192.08,6.67278899]
[1735684144605,9.27968899,192.16,192.09,2.6077]
[1735684148414,9.27968899,192.16,192.1,6.67278899]
[1735684148612,1.04074517,192.17,192.1,6.67278899]
[1735684148812,1.04074517,192.17,192.14,6.67278899]
[1735684149018,1.04074517,192.17,192.16,6.67278899]
[1735684149313,6.67278899,192.24,192.16,9.69278899]
[1735684149510,2.6061,192.22,192.16,9.69278899]
[1735684151011,9.27888899,192.22,192.16,9.69278899]
[1735684151506,9.27888899,192.22,192.16,12.29948899]
[1735684152410,6.67278899,192.22,192.08,3.2481]
[1735684152610,2.6063,192.2,192.09,3.02]
[1735684152817,2.6063,192.2,192.13,6.67278899]
[1735684153016,2.6063,192.2,192.14,3.02]
[1735684154419,2.6063,192.2,192.14,5.627]
[1735684154819,2.6063,192.2,192.14,2.607]
[1735684155019,2.6063,192.2,192.15,3.02]
[1735684162518,2.6063,192.2,192.15,5.6269]
[1735684165423,6.67278899,192.21,192.15,5.6269]
[1735684165624,2.6064,192.19,192.15,5.6269]
[1735684168427,2.6064,192.19,192.15,3.02]
[1735684169425,2.6064,192.19,192.12,6.67278899]
[1735684169728,2.6069,192.15,192.13,3.02]
[1735684169932,2.6069,192.15,192.14,3.02]
[1735684172032,6.67278899,192.17,192.11,3.02]
[1735684172425,6.67278899,192.17,192.08,9.28048899]
[1735684172631,6.67278899,192.17,192.09,3.02]
[1735684173431,2.607,192.15,192.09,3.02]
[1735684173638,6.67278899,192.17,192.09,3.02]
[1735684174238,3.0377,192.16,192.09,3.02]
[1735684175142,2.6073,192.13,192.09,3.02]
[1735684175638,2.6073,192.13,192.1,3.02]
[1735684180243,2.6073,192.13,192.1,9.69278899]
[1735684181546,2.6073,192.13,192.1,6.67278899]
[1735684181747,2.6073,192.13,192.1,9.69278899]
[1735684185750,2.6071,192.14,192.1,9.69278899]
[1735684187647,2.6072,192.13,192.1,9.69278899]
[1735684188451,2.607,192.15,192.1,12.30028899]
[1735684190441,3.0377,192.16,192.1,12.30028899]
[1735684190640,2.6071,192.14,192.1,12.30028899]
[1735684192846,3.0377,192.16,192.1,12.30028899]
[1735684193047,2.607,192.15,192.11,2.6074]
[1735684194751,2.6071,192.14,192.11,2.6074]
[1735684202056,6.67278899,192.14,192.06,2.608]
[1735684202257,6.67278899,192.12,192.04,3.02]
[1735684202458,6.67278899,192.1,192.01,3.1188]
[1735684202654,2.6079,192.08,192.03,2.6085]
[1735684202958,6.67278899,192.1,192.03,2.6085]
[1735684204059,2.6079,192.08,192.03,2.6085]
[1735684204356,6.67278899,192.1,192.03,2.6085]
[1735684204558,2.608,192.08,192.03,2.6085]
[1735684204759,6.67278899,192.1,192.03,2.6085]
[1735684204955,6.67278899,192.08,192.0,5.6288]
[1735684205261,6.67278899,192.06,192.0,5.6288]
[1735684205860,2.6083,192.05,192.0,5.6288]
[1735684206359,2.6084,192.04,192.0,3.02]
[1735684207559,2.6087,192.02,191.97,2.6092]
[1735684207759,2.6087,192.02,191.97,9.28198899]
[1735684207958,2.6087,192.02,191.97,12.30198899]
[1735684208555,2.6088,192.01,191.97,9.69278899]
[1735684208864,6.67278899,192.06,191.97,9.69278899]
[1735684209064,2.6088,192.02,191.97,9.69278899]
[1735684210563,6.67278899,192.06,191.97,9.69278899]
[1735684211354,2.6085,192.04,191.97,9.69278899]
[1735684211653,6.67278899,192.06,191.97,9.69278899]
[1735684212555,2.6088,192.02,191.97,12.30208899]
[1735684213166,6.67278899,192.06,191.97,12.30208899]
[1735684213463,2.6088,192.01,191.97,12.30208899]
[1735684214464,2.6088,192.01,191.97,9.69278899]
[1735684216669,6.67278899,192.0,191.94,3.02]
[1735684217267,6.67278899,191.98,191.92,9.69278899]
[1735684217466,6.67278899,191.98,191.9,6.67278899]
[1735684217665,2.6099,191.94,191.91,3.02]
[1735684217967,6.67278899,191.96,191.91,3.02]
[1735684218368,2.6101,191.92,191.88,3.02]
[1735684220464,2.61,191.93,191.88,3.02]
[1735684220766,6.67278899,191.94,191.88,3.02]
[1735684220957,6.67278899,191.94,191.86,9.28358899]
[1735684221164,2.6101,191.92,191.86,12.30358899]
[1735684223265,2.6096,191.96,191.9,6.67278899]
[1735684223471,6.67278899,191.98,191.9,6.67278899]
[1735684224068,2.6097,191.95,191.9,6.67278899]
[1735684225066,6.67278899,191.98,191.9,6.67278899]
[1735684225269,2.6098,191.94,191.9,6.67278899]
[1735684226765,12.24936926,192.02,191.9,6.67278899]
[1735684226970,2.6096,191.96,191.91,5.6301]
[1735684229570,2.6096,191.95,191.91,5.6301]
[1735684230474,2.6097,191.94,191.91,3.02]
[1735684231476,6.67278899,191.95,191.91,3.02]
[1735684231679,6.67278899,191.95,191.87,6.67278899]
[1735684232571,2.61,191.92,191.87,6.67278899]
[1735684233577,2.61,191.92,191.87,9.28338899]
[1735684236081,6.67278899,191.95,191.87,6.67278899]
[1735684237183,2.6101,191.92,191.87,9.28348899]
[1735684237584,6.67278899,191.95,191.87,9.28348899]
[1735684237785,6.67278899,191.95,191.87,6.67278899]
[1735684237986,6.67278899,191.95,191.88,2.6105]
[1735684239488,2.6101,191.92,191.88,2.6105]
[1735684242589,2.6101,191.92,191.87,12.30348899]
[1735684246087,2.6102,191.91,191.87,5.6307]
[1735684246890,2.6102,191.91,191.8,43.25251981]
[1735684247094,2.6102,191.91,191.86,2.6108]
[1735684248088,2.6102,191.91,191.86,5.6308]
[1735684249793,2.6105,191.89,191.86,3.02]
[1735684250596,2.6105,191.89,191.84,5.6311]
[1735684251995,6.67278899,191.9,191.84,2.6111]
[1735684252195,6.67278899,191.88,191.82,2.6113]
[1735684252388,6.67278899,191.88,191.8,49.9253088]
[1735684252592,6.67278899,191.88,191.8,52.9453088]
[1735684252891,6.67278899,191.88,191.81,2.6114]
[1735684253785,2.6108,191.86,191.81,2.6114]
[1735684254691,2.6108,191.86,191.8,52.9453088]
[1735684254892,2.6108,191.86,191.8,55.5569088]
[1735684255095,6.67278899,191.88,191.8,43.25251981]
[1735684255394,6.67278899,191.88,191.8,46.27251981]
[1735684255987,2.611,191.85,191.8,48.88411981]
[1735684256493,2.611,191.85,191.8,46.27251981]
[1735684256994,2.611,191.85,191.81,2.6114]
[1735684257193,2.611,191.85,191.8,46.27251981]
[1735684258091,2.6111,191.84,191.81,2.6115]
[1735684260390,2.6111,191.84,191.8,43.25251981]
[1735684260591,2.6111,191.84,191.8,45.86411981]
[1735684262700,6.67278899,191.86,191.8,2.6116]
[1735684262701,2.6113,191.83,191.8,2.6116]
[1735684263502,2.6113,191.83,191.79,9.69278899]
[1735684263804,2.6113,191.83,191.79,12.30448899]
[1735684264497,2.6113,191.83,191.8,2.6117]
[1735684265405,2.6109,191.86,191.82,2.6113]
[1735684265905,2.6111,191.84,191.81,6.67278899]
[1735684267306,6.67278899,191.86,191.79,12.30448899]
[1735684267698,6.67278899,191.86,191.79,9.28448899]
[1735684267903,2.6111,191.84,191.79,12.30448899]
[1735684268105,6.67278899,191.86,191.79,9.69278899]
[1735684268405,6.67278899,191.86,191.79,3.02]
[1735684268606,2.6114,191.83,191.79,3.02]
[1735684269703,2.6114,191.83,191.78,5.666]
[1735684271008,2.6114,191.83,191.78,4.1247]
[1735684272104,2.6114,191.83,191.79,2.6118]
[1735684272612,6.67278899,191.84,191.78,1.5128]
[1735684273009,2.6115,191.82,191.78,1.5128]
[1735684277221,2.6113,191.83,191.78,4.1246]
[1735684277417,12.24891113,191.88,191.79,6.67278899]
[1735684277619,18.92170012,191.88,191.71,1.6269]
[1735684277819,2.6113,191.83,191.78,6.67278899]
[1735684278722,2.6113,191.83,191.79,2.6117]
[1735684279818,13.22251113,191.88,191.84,2.611]
[1735684280025,2.6107,191.88,191.84,5.631]
[1735684280523,2.6107,191.88,191.84,9.69278899]
[1735684280823,2.6107,191.88,191.85,2.611]
[1735684282425,2.6107,191.88,191.84,12.30388899]
[1735684282919,2.6107,191.87,191.84,5.6311]
[1735684284925,2.6107,191.87,191.84,3.02]
[1735684286619,2.6107,191.87,191.83,2.6112]
[1735684286827,2.6107,191.87,191.84,3.02]
[1735684291928,2.6106,191.89,191.84,5.631]
[1735684292931,2.6106,191.89,191.85,2.611]
[1735684299333,6.67278899,191.91,191.82,6.67278899]
[1735684299531,6.67278899,191.89,191.81,9.69278899]
[1735684300333,2.6111,191.85,191.82,3.02]
[1735684301735,2.6112,191.84,191.82,3.02]
[1735684304733,14.52938605,191.9,191.82,9.69278899]
[1735684304938,6.67278899,191.89,191.83,2.6112]
[1735684305138,10.59036391,191.89,191.82,9.69278899]
[1735684305741,2.611,191.85,191.82,12.30408899]
[1735684309635,6.67278899,191.85,191.74,10.29523732]
[1735684310042,10.61181113,191.88,191.77,6.67278899]
[1735684310236,6.67278899,191.84,191.77,6.67278899]
[1735684311540,2.6116,191.81,191.77,9.28478899]
[1735684311741,2.6116,191.81,191.77,2.612]
[1735684311937,2.6116,191.81,191.77,9.28478899]
[1735684316851,2.6116,191.81,191.77,2.612]
[1735684317254,2.6116,191.81,191.77,5.632]
[1735684317453,2.6116,191.81,191.78,6.67278899]
[1735684317951,2.6116,191.81,191.77,5.632]
[1735684318150,2.6116,191.81,191.78,6.67278899]
[1735684320153,2.612,191.78,191.74,1.5321]
[1735684320456,2.612,191.78,191.74,11.22488899]
[1735684321453,6.67278899,191.8,191.69,28.75654928]
[1735684321750,6.67278899,191.8,191.72,9.69278899]
[1735684321953,6.67278899,191.8,191.72,6.67278899]
[1735684322153,2.6122,191.77,191.73,3.02]
[1735684322357,6.67278899,191.8,191.73,3.02]
[1735684322954,2.6122,191.76,191.73,3.02]
[1735684327652,6.67278899,191.8,191.73,3.02]
[1735684327653,2.6123,191.75,191.73,3.02]
[1735684330066,2.6122,191.76,191.73,3.02]
[1735684332969,12.28101113,191.82,191.74,6.67278899]
[1735684333271,2.6119,191.79,191.74,9.28518899]
[1735684333467,2.6119,191.79,191.74,6.67278899]
[1735684333664,1.6692,191.82,191.76,6.67278899]
[1735684333868,2.6117,191.8,191.76,6.67278899]
[1735684334864,2.6117,191.8,191.76,9.28488899]
[1735684336475,2.6118,191.79,191.76,2.6121]
[1735684337974,2.6118,191.79,191.74,6.67278899]
[1735684338273,2.6118,191.79,191.75,2.6123]
[1735684340380,18.95380012,191.82,191.74,6.67278899]
[1735684340679,2.6117,191.8,191.76,2.6122]
[1735684342569,2.612,191.78,191.74,9.28508899]
[1735684344181,2.612,191.78,191.74,6.67278899]
[1735684344574,19.02470086,191.82,191.72,6.67278899]
[1735684344575,6.67278899,191.8,191.72,6.67278899]
[1735684344774,6.67278899,191.8,191.73,3.02]
[1735684345883,2.6124,191.75,191.73,3.02]
[1735684346070,2.6124,191.75,191.72,9.69278899]
[1735684346270,6.67278899,191.8,191.72,3.02]
[1735684346676,2.6125,191.74,191.72,3.02]
[1735684347281,2.6125,191.74,191.71,3.02]
[1735684348980,2.6126,191.73,191.7,6.67278899]
[1735684349184,2.6126,191.73,191.7,9.69278899]
[1735684349481,2.6129,191.71,191.68,10.31350383]
[1735684349673,2.6129,191.71,191.69,3.02]
[1735684350379,6.67278899,191.76,191.68,10.31350383]
[1735684350585,2.6128,191.72,191.69,3.02]
[1735684353083,6.67278899,191.76,191.69,3.02]
[1735684353284,2.6127,191.73,191.69,3.02]
[1735684353680,2.6127,191.73,191.7,6.67278899]
[1735684353885,2.6127,191.73,191.69,9.69278899]
[1735684354289,6.67278899,191.76,191.69,6.67278899]
[1735684354489,2.6128,191.72,191.69,6.67278899]
[1735684355796,2.6128,191.72,191.68,6.66071484]
[1735684356291,2.6129,191.71,191.68,6.66071484]
[1735684356891,2.6129,191.71,191.68,3.64071484]
[1735684357291,6.67278899,191.74,191.68,3.64071484]
[1735684357493,6.67278899,191.74,191.66,9.69278899]
[1735684357991,2.6131,191.7,191.66,12.30628899]
[1735684359188,2.6132,191.69,191.66,3.02]
[1735684361289,2.6137,191.66,191.58,1.5294]
[1735684361496,2.6137,191.66,191.61,3.02]
[1735684361793,2.6137,191.66,191.63,6.67278899]
[1735684364196,2.6137,191.66,191.63,9.69278899]
[1735684369092,2.6137,191.66,191.63,6.67278899]
[1735684371799,2.6137,191.66,191.61,12.30698899]
[1735684380011,10.68271187,191.72,191.65,6.67278899]
[1735684380202,13.29531187,191.74,191.68,9.28598899]
[1735684380506,30.04595369,191.76,191.69,3.02]
[1735684380706,6.67278899,191.74,191.69,3.02]
[1735684381007,2.6128,191.72,191.69,3.02]
[1735684381201,6.67278899,191.74,191.69,3.02]
[1735684381409,6.67278899,191.72,191.69,3.02]
[1735684381709,2.613,191.7,191.69,3.02]
[1735684381914,6.67278899,191.72,191.66,3.02]
[1735684382209,2.6132,191.69,191.66,3.02]
[1735684383510,6.67278899,191.68,191.66,3.02]
[1735684383809,2.6134,191.67,191.66,3.02]
[1735684384007,2.6134,191.67,191.63,5.6339]
[1735684384311,9.28608899,191.68,191.65,2.6137]
[1735684384506,6.67278899,191.68,191.63,3.02]
[1735684385412,2.6137,191.66,191.62,2.6141]
[1735684385604,6.67278899,191.68,191.53,7.18913732]
[1735684385806,6.67278899,191.68,191.58,6.67278899]
[1735684386207,6.67278899,191.64,191.57,3.02]
[1735684386411,6.67278899,191.64,191.57,9.69278899]
[1735684386811,2.6141,191.63,191.57,9.69278899]
[1735684387007,2.6141,191.63,191.57,6.67278899]
[1735684387205,2.6144,191.61,191.54,4.7202]
[1735684387409,2.6144,191.61,191.56,6.67278899]
[1735684387608,14.59286549,191.67,191.58,6.67278899]
[1735684387805,10.67021968,191.67,191.6,6.67278899]
[1735684388011,6.67278899,191.68,191.61,3.02]
[1735684388512,2.6137,191.66,191.62,2.614]
[1735684389818,1.6167,191.7,191.61,3.02]
[1735684390015,1.6167,191.7,191.63,2.6139]
[1735684390016,6.67278899,191.67,191.63,2.6139]
[1735684391503,2.6137,191.66,191.63,2.6139]
[1735684392211,2.6138,191.65,191.62,2.6141]
[1735684392714,9.28658899,191.65,191.62,2.6141]
[1735684392908,2.614,191.63,191.61,3.02]
[1735684393310,6.67278899,191.65,191.61,3.02]
[1735684393910,2.6141,191.63,191.59,9.28718899]
[1735684394117,6.67278899,191.65,191.6,3.02]
[1735684395313,2.6143,191.61,191.58,12.30738899]
[1735684398219,2.6143,191.61,191.58,9.69278899]
[1735684399316,2.6143,191.61,191.58,6.67278899]
[1735684399517,2.6143,191.61,191.58,9.69278899]
[1735684401421,2.614,191.63,191.58,3.02]
[1735684401617,17.34300867,191.65,191.58,3.02]
[1735684402023,6.67278899,191.65,191.58,3.02]
[1735684402218,2.6143,191.61,191.58,3.02]
[1735684407322,2.6144,191.6,191.58,3.02]
[1735684409619,2.6145,191.6,191.58,3.02]
[1735684412734,6.67278899,191.62,191.56,6.67278899]
[1735684413033,6.67278899,191.62,191.52,62.24509705]
[1735684413223,2.6146,191.59,191.55,9.28778899]
[1735684413425,6.67278899,191.62,191.55,9.28778899]
[1735684414730,2.6146,191.59,191.55,9.28778899]
[1735684415430,2.6146,191.59,191.56,2.6148]
[1735684415733,2.6148,191.58,191.54,6.67278899]
[1735684416432,2.6148,191.58,191.55,2.615]
[1735684417726,2.6147,191.58,191.55,2.615]
[1735684419528,6.67278899,191.57,191.4,7.54938629]
[1735684419732,6.67278899,191.61,191.53,6.67278899]
[1735684419932,6.67278899,191.61,191.54,3.02]
[1735684420832,2.6149,191.57,191.54,5.6352]
[1735684422538,6.67278899,191.61,191.54,3.02]
[1735684423032,2.6149,191.57,191.54,5.6352]
[1735684423232,10.596379,191.61,191.54,3.02]
[1735684423632,6.67278899,191.61,191.54,3.02]
[1735684424438,2.6149,191.57,191.54,5.6351]
[1735684424834,2.615,191.56,191.54,5.6352]
[1735684426041,6.67278899,191.6,191.53,3.02]
[1735684426242,6.67278899,191.6,191.53,9.69278899]
[1735684426740,2.6149,191.57,191.54,2.6151]
[1735684426940,2.6149,191.57,191.54,5.6351]
[1735684428236,6.67278899,191.6,191.54,3.02]
[1735684428539,2.6147,191.58,191.55,2.615]
[1735684428934,2.6148,191.57,191.54,5.6352]
[1735684430142,2.6148,191.57,191.54,3.02]
[1735684431244,2.615,191.56,191.54,3.02]
[1735684432146,6.67278899,191.6,191.54,3.02]
[1735684432340,2.6148,191.57,191.54,3.02]
[1735684434046,6.67278899,191.6,191.54,3.02]
[1735684434247,2.615,191.56,191.54,3.02]
[1735684436148,2.6149,191.57,191.54,3.02]
[1735684437440,2.6149,191.56,191.54,3.02]
[1735684437641,3.92357125,191.61,191.54,3.02]
[1735684437847,6.67278899,191.6,191.54,5.6352]
[1735684439048,6.67278899,191.6,191.54,3.02]